bitfinex/quotes_ETHUSD_20241024
["timestamp","ask_amount","ask_price","bid_price","bid_amount"]
[1729771461765,1.0212984,2533.1,2533.0,1.78722532]
[1729771461896,5.38032797,2533.1,2533.0,0.15998851]
[1729771462094,5.38032797,2533.1,2532.2,0.9086]
[1729771462095,3.94876,2532.5,2532.2,0.9086]
[1729771462406,3.94876,2532.5,2532.3,0.14898368]
[1729771462407,3.94888,2532.4,2532.3,0.14898368]
[1729771462602,3.94888,2532.4,2532.0,0.9086]
[1729771462801,3.94888,2532.4,2532.1,0.22170996]
[1729771463001,3.94888,2532.4,2532.1,0.37100769]
[1729771463535,3.94913,2532.2,2532.1,0.14929773]
[1729771463726,3.94899,2532.3,2532.1,0.14929773]
[1729771463901,3.94913,2532.2,2531.8,1.30849957]
[1729771464102,3.94844,2532.7,2532.2,0.9331]
[1729771464312,3.94844,2532.7,2532.3,0.14921331]
[1729771464504,3.94852,2532.6,2532.3,0.14921331]
[1729771464699,3.94788,2533.0,2532.4,4.49881]
[1729771464911,3.94811,2532.9,2532.5,0.14899644]
[1729771465220,3.94799,2533.0,2532.6,0.55]
[1729771465404,3.94797,2533.0,2532.6,0.55]
[1729771465603,7.89594,2533.0,2532.7,0.14877961]
[1729771465827,3.94807,2532.9,2532.7,0.14877961]
[1729771467831,0.09870562,2533.0,2532.7,0.14877961]
[1729771468048,3.94816,2532.9,2532.7,0.14877961]
[1729771468237,0.1240984,2533.1,2532.8,4.49819]
[1729771468438,0.1240984,2533.1,2532.9,0.46469696]
[1729771468595,0.1240984,2533.1,2533.0,0.55]
[1729771468936,4.0718284,2533.1,2533.0,0.14845442]
[1729771469318,0.1240984,2533.1,2532.7,3.97693412]
[1729771469642,0.1240984,2533.1,2533.0,0.69845442]
[1729771470862,0.1240984,2533.1,2533.0,4.64633442]
[1729771472874,0.1240984,2533.1,2533.0,5.45213442]
[1729771473385,0.1240984,2533.1,2533.0,8.48073336]
[1729771473537,0.1240984,2533.1,2533.0,8.45213442]
[1729771473733,0.1240984,2533.1,2533.0,9.7420012]
[1729771474233,0.1240984,2533.1,2533.0,8.9362012]
[1729771474735,0.1240984,2533.1,2533.0,5.9362012]
[1729771475175,0.1240984,2533.1,2533.0,5.96481994]
[1729771475473,0.1240984,2533.1,2533.0,5.96482004]
[1729771475879,0.1240984,2533.1,2533.0,1.9883212]
[1729771476034,0.1240984,2533.1,2533.0,0.69845442]
[1729771476389,0.1240984,2533.1,2533.0,0.14845442]
[1729771476745,0.1240984,2533.1,2532.8,3.94817]
[1729771476949,0.1240984,2533.1,2533.0,0.14848972]
[1729771477177,0.1240984,2533.1,2532.9,0.14859811]
[1729771477476,0.1240984,2533.1,2532.9,0.55]
[1729771477681,0.1240984,2533.1,2533.0,0.14848972]
[1729771478537,0.1240984,2533.1,2533.0,0.69848972]
[1729771478738,0.1240984,2533.1,2533.0,5.16888021]
[1729771478932,0.1240984,2533.1,2533.0,5.97148021]
[1729771480188,0.1240984,2533.1,2533.0,6.00009682]
[1729771483384,0.1240984,2533.1,2533.0,5.97148021]
[1729771483737,0.1240984,2533.1,2533.0,11.93132779]
[1729771484086,0.1240984,2533.1,2533.0,11.90272815]
[1729771485084,0.1240984,2533.1,2533.0,12.5109625]
[1729771485982,8.4e-06,2533.2,2533.1,8.34063]
[1729771486163,8.4e-06,2533.2,2533.1,10.44033025]
[1729771486370,0.005,2533.3,2533.2,8.34047]
[1729771486371,8.4e-06,2533.3,2533.2,8.34047]
[1729771486932,8.4e-06,2533.3,2533.2,8.48826616]
[1729771487076,8.4e-06,2533.3,2533.2,11.4095141]
[1729771488130,8.4e-06,2533.3,2533.2,5.47826616]
[1729771488289,8.4e-06,2533.3,2533.2,7.37199964]
[1729771488911,8.4e-06,2533.3,2533.2,6.82199964]
[1729771489991,8.4e-06,2533.3,2533.2,5.98909964]
[1729771490318,8.4e-06,2533.3,2533.2,4.12396189]
[1729771490523,8.4e-06,2533.3,2533.2,4.12396094]
[1729771490818,8.4e-06,2533.3,2533.2,4.09536616]
[1729771491278,8.4e-06,2533.3,2533.2,4.6739482]
[1729771491687,8.4e-06,2533.3,2533.2,11.4343141]
[1729771491912,8.4e-06,2533.3,2533.2,10.10552162]
[1729771492631,8.4e-06,2533.3,2533.2,9.23782162]
[1729771493001,0.5741084,2533.6,2533.3,3.0]
[1729771493201,0.5741084,2533.6,2533.5,4.4971]
[1729771493402,3.94665,2533.8,2533.6,0.55]
[1729771493725,3.94649,2533.9,2533.7,0.14724119]
[1729771494466,3.94664,2533.8,2533.7,0.14724119]
[1729771494632,0.09866603,2533.8,2533.7,0.14724119]
[1729771494827,3.94635,2534.0,2533.6,0.55]
[1729771495033,3.94635,2534.0,2533.7,0.14699843]
[1729771495259,7.89248,2534.1,2533.8,0.55]
[1729771495573,3.94634,2534.0,2533.9,0.1467818]
[1729771495727,3.94621,2534.1,2533.9,0.1467818]
[1729771495927,7.89252,2534.1,2533.9,0.1467818]
[1729771496129,0.8467,2534.0,2533.9,0.1467818]
[1729771496768,4.79273,2534.2,2533.9,0.1467818]
[1729771496958,4.79272,2534.2,2534.0,0.55]
[1729771497272,4.79272,2534.2,2534.0,0.69667349]
[1729771498095,0.8467,2534.2,2534.0,0.69667349]
[1729771498288,4.79274,2534.2,2534.0,0.69667349]
[1729771498781,4.91192079,2534.1,2534.0,0.14667349]
[1729771498967,3.94645,2534.0,2533.4,3.97573401]
[1729771499170,4.81336,2534.1,2534.0,0.14667349]
[1729771499585,4.81336,2534.1,2533.6,3.94681]
[1729771499774,0.8671,2534.1,2534.0,0.14656317]
[1729771499968,0.8671,2534.1,2533.8,0.55]
[1729771500282,4.91201745,2534.1,2534.0,0.14656317]
[1729771500485,4.78782,2534.0,2533.9,0.14667147]
[1729771500692,3.94713,2533.5,2533.1,3.807]
[1729771500851,0.8415,2533.6,2533.3,3.9474]
[1729771501056,0.8415,2533.6,2533.2,4.09503837]
[1729771501255,0.8415,2533.6,2533.4,0.14726165]
[1729771501573,0.8415,2533.6,2533.5,0.14715331]
[1729771501982,0.8415,2533.6,2533.5,0.55]
[1729771502146,0.8415,2533.6,2533.5,0.69715331]
[1729771503059,0.8333,2533.8,2533.5,0.69715331]
[1729771503261,4.78001,2533.8,2533.5,0.69715331]
[1729771504097,0.8333,2533.8,2533.6,0.55]
[1729771504391,3.94633,2534.0,2533.7,0.14699843]
[1729771504590,3.94658,2533.9,2533.7,0.14699843]
[1729771506706,3.94635,2534.0,2533.7,0.14699843]
[1729771507061,3.94635,2534.0,2533.8,0.55]
[1729771507570,3.94635,2534.0,2533.9,0.14680826]
[1729771509309,4.80529,2534.1,2533.9,0.14680826]
[1729771509509,0.8591,2534.1,2534.0,0.55]
[1729771509710,4.80527,2534.1,2534.0,0.55]
[1729771509877,4.80527,2534.1,2534.0,0.69667348]
[1729771510266,4.80527,2534.1,2533.8,0.55]
[1729771510514,4.80527,2534.1,2534.0,0.69667348]
[1729771510804,0.8591,2534.1,2534.0,0.69667348]
[1729771511120,3.94588,2534.3,2534.1,0.55]
[1729771511284,0.8748,2534.4,2534.1,0.55]
[1729771511614,4.82052,2534.4,2534.2,0.14643042]
[1729771512775,3.94586,2534.3,2534.2,0.69643042]
[1729771513427,4.82053,2534.4,2534.2,0.69643042]
[1729771513896,3.94549,2534.6,2534.3,0.55]
[1729771514097,0.0986435,2534.9,2534.5,0.55]
[1729771514410,3.94493,2534.9,2534.7,0.55]
[1729771514716,3.94508,2534.8,2534.7,0.55]
[1729771515113,4.87490668,2534.8,2534.7,0.14579646]
[1729771515327,4.92569235,2534.8,2534.7,0.14579646]
[1729771515510,3.94571,2534.4,2534.2,0.55]
[1729771515714,0.8678,2534.8,2534.3,0.02852205]
[1729771515938,0.8678,2534.8,2534.6,4.49538]
[1729771516239,3.94463,2535.1,2534.9,0.55]
[1729771516240,0.8678,2535.1,2534.9,0.55]
[1729771516556,0.1240984,2535.6,2535.0,1.02375269]
[1729771516700,0.1240984,2535.6,2535.5,8.38269]
[1729771517045,0.1240984,2535.6,2535.5,9.18875206]
[1729771517198,0.1240984,2535.6,2535.5,8.51703857]
[1729771517405,0.1240984,2535.6,2535.5,9.76314443]
[1729771520450,0.002,2537.1,2537.0,4.79686]
[1729771520661,3.94056,2537.8,2537.1,3.55]
[1729771520846,3.93989,2538.2,2537.1,7.5015]
[1729771521004,3.93989,2538.2,2537.1,7.62864573]
[1729771521530,2.92124794,2538.2,2537.1,7.62864573]
[1729771521737,4.75724,2537.8,2537.1,3.68714573]
[1729771521963,4.75724,2537.8,2537.1,0.68714573]
[1729771522128,3.94075,2537.6,2537.1,0.68714573]
[1729771522322,4.91166229,2537.7,2537.1,0.68714573]
[1729771522526,3.94058,2537.7,2537.1,0.68714573]
[1729771522832,3.94076,2537.6,2537.1,0.68714573]
[1729771523030,8.40513272,2537.8,2537.1,0.68714573]
[1729771523251,3.94058,2537.7,2537.1,0.68714573]
[1729771523551,0.8168,2537.8,2537.1,0.68714573]
[1729771523703,4.46463272,2537.8,2537.1,0.68714573]
[1729771523909,2.6492,2537.2,2537.1,0.13714573]
[1729771524110,3.30824,2537.2,2537.1,0.13714573]
[1729771524334,2.6492,2537.2,2536.6,3.94225]
[1729771524559,2.6492,2537.2,2536.7,0.07883282]
[1729771524763,2.6492,2537.2,2536.8,0.13103769]
[1729771525039,2.6492,2537.2,2536.9,0.07883289]
[1729771525372,1.8,2537.2,2537.0,0.55]
[1729771525580,1.8,2537.2,2536.8,4.49195]
[1729771525795,1.8,2537.2,2537.1,0.68071355]
[1729771525948,1.8,2537.2,2537.1,0.13071355]
[1729771526273,1.8,2537.2,2537.1,0.55]
[1729771526589,1.8,2537.2,2537.1,0.68071355]
[1729771527182,1.8,2537.2,2537.1,0.13071355]
[1729771527561,1.8,2537.2,2536.8,3.94194]
[1729771527739,1.8,2537.2,2536.9,0.75975673]
[1729771527937,1.8,2537.2,2536.9,4.70153673]
[1729771528138,1.8,2537.2,2537.0,3.94164]
[1729771528378,1.8,2537.2,2537.1,0.55]
[1729771528580,1.8,2537.2,2537.1,0.68071355]
[1729771528989,1.75,2537.2,2537.1,0.68071355]
[1729771529136,1.75,2537.2,2537.1,5.56220491]
[1729771529342,1.75,2537.2,2537.1,4.62070491]
[1729771529739,1.75,2537.2,2537.1,8.56220491]
[1729771530573,1.75,2537.2,2537.1,1.62070491]
[1729771530768,1.75,2537.2,2537.1,0.68071355]
[1729771531780,1.75,2537.2,2537.1,0.13071355]
[1729771531944,1.75,2537.2,2536.8,4.336084]
[1729771532198,1.75,2537.2,2536.9,0.20495572]
[1729771532536,1.75,2537.2,2537.1,3.9415]
[1729771532897,1.75,2537.2,2537.1,7.77498416]
[1729771533098,1.75,2537.2,2537.1,7.69616805]
[1729771533526,1.75,2537.2,2537.1,8.60006805]
[1729771533733,1.75,2537.2,2537.1,8.61006805]
[1729771534040,1.75,2537.2,2537.1,10.69106152]
[1729771535151,0.1240984,2538.1,2537.8,3.94032]
[1729771535345,0.1240984,2538.1,2538.0,7.49011]
[1729771535694,0.1240984,2538.1,2538.0,7.69369217]
[1729771535908,0.1240984,2538.1,2538.0,8.93586472]
[1729771536245,0.1240984,2538.1,2538.0,8.86708539]
[1729771536406,0.0740984,2538.1,2538.0,13.39331811]
[1729771537246,0.0740984,2538.1,2538.0,13.40331811]
[1729771537448,0.0740984,2538.1,2538.0,9.73548539]
[1729771538143,0.0740984,2538.1,2538.0,1.91697539]
[1729771538344,0.0740984,2538.1,2538.0,0.75358217]
[1729771540035,0.0740984,2538.1,2538.0,4.69369217]
[1729771541437,0.0740984,2538.1,2538.0,4.7724681]
[1729771541851,0.0740984,2538.1,2538.0,4.69369217]
[1729771542062,0.0740984,2538.1,2538.0,4.14369217]
[1729771542542,0.0740984,2538.1,2538.0,0.20358217]
[1729771543240,0.0740984,2538.1,2537.8,8.0104]
[1729771543457,0.0740984,2538.1,2538.0,0.75294262]
[1729771543672,0.0740984,2538.1,2538.0,0.55]
[1729771543868,0.0740984,2538.1,2538.0,0.75294262]
[1729771544433,0.0740984,2538.1,2538.0,4.69305262]
[1729771544633,0.0740984,2538.1,2538.0,5.57723709]
[1729771547039,0.0740984,2538.1,2538.0,9.4954142]
[1729771547374,0.0740984,2538.1,2538.0,6.41663709]
[1729771547587,0.0740984,2538.1,2538.0,5.53245262]
[1729771548455,0.0740984,2538.1,2538.0,4.69305262]
[1729771548632,0.0740984,2538.1,2538.0,0.20294262]
[1729771549073,0.0740984,2538.1,2537.8,4.07]
[1729771549373,0.0740984,2538.1,2537.9,0.28183256]
[1729771549576,0.0740984,2538.1,2537.9,4.22209256]
[1729771549784,0.0740984,2538.1,2537.9,0.20304036]
[1729771549949,4.0141584,2538.1,2537.9,0.20304036]
[1729771550157,3.94011,2538.0,2537.9,0.20304036]
[1729771550345,4.83891,2538.0,2537.9,0.20304036]
[1729771551306,3.94042,2537.8,2537.3,4.07]
[1729771551522,3.94042,2537.8,2537.2,0.07881145]
[1729771551523,3.94068,2537.7,2537.2,0.07881145]
[1729771551684,3.94042,2537.8,2537.3,3.94119]
[1729771551869,3.94036,2537.9,2537.3,3.94111]
[1729771552210,3.64783272,2537.8,2537.0,3.94159]
[1729771552368,4.81456,2537.4,2536.9,8.55233397]
[1729771552568,3.94133,2537.3,2536.9,4.61052397]
[1729771553011,3.9408,2537.6,2537.0,3.94152]
[1729771553302,0.9183,2537.7,2537.0,3.94158]
[1729771553507,3.94082,2537.6,2537.0,3.94158]
[1729771553896,3.94097,2537.5,2537.0,3.94158]
[1729771554221,3.94082,2537.6,2536.9,4.61052397]
[1729771554399,3.94085,2537.6,2536.9,4.07]
[1729771554703,1.46553834,2537.7,2537.0,0.07882228]
[1729771554913,0.9183,2537.2,2536.9,4.07]
[1729771555063,0.9183,2537.2,2536.9,8.01174]
[1729771555267,0.9183,2537.2,2536.9,4.07]
[1729771555504,3.9416,2537.1,2536.9,4.07]
[1729771555709,3.9415,2537.1,2536.9,4.07]
[1729771555914,0.9183,2537.2,2536.9,4.07]
[1729771556070,0.9183,2537.2,2537.0,3.9416]
[1729771556271,3.94074,2537.6,2536.9,8.41877]
[1729771556272,0.8598,2537.5,2537.1,3.94148]
[1729771556497,4.80076,2537.5,2536.9,8.41877]
[1729771556684,3.94106,2537.4,2536.9,8.41877]
[1729771557006,3.94106,2537.4,2537.0,0.55]
[1729771557197,3.94104,2537.4,2537.0,0.55]
[1729771557399,3.94132,2537.3,2537.0,0.55]
[1729771557705,4.8007,2537.5,2537.0,0.55]
[1729771557885,3.94106,2537.4,2537.0,0.55]
[1729771558302,0.8598,2537.5,2537.0,4.49164]
[1729771558488,3.94104,2537.4,2537.0,0.55]
[1729771558700,3.9412,2537.3,2537.0,0.55]
[1729771559013,3.94123,2537.3,2537.0,0.55]
[1729771559171,4.79776,2537.0,2536.9,4.07]
[1729771559372,0.8561,2537.0,2536.9,4.07]
[1729771559567,0.8561,2537.0,2536.9,4.26825594]
[1729771561402,4.79776,2537.0,2536.9,0.19825594]
[1729771561804,3.94186,2536.9,2536.3,7.88531]
[1729771562004,3.94186,2536.9,2536.4,0.62884257]
[1729771562210,0.8561,2537.0,2536.6,0.55]
[1729771562378,0.8561,2537.0,2536.6,4.49218]
[1729771562877,0.8461,2537.0,2536.6,0.55]
[1729771563074,3.95117,2537.4,2536.9,0.55]
[1729771563279,3.66783272,2537.8,2537.1,0.55]
[1729771563512,0.36678327,2537.7,2537.1,0.55]
[1729771563815,3.93089,2537.5,2537.1,0.55]
[1729771564178,3.94106,2537.4,2537.1,0.55]
[1729771564379,3.9409,2537.5,2537.1,0.55]
[1729771564579,7.88191,2537.5,2537.1,0.55]
[1729771564806,3.9409,2537.5,2537.1,0.55]
[1729771565127,3.9309,2537.5,2537.1,0.55]
[1729771565305,3.94122,2537.3,2536.8,0.55]
[1729771565475,3.94122,2537.3,2536.8,5.14438563]
[1729771565881,3.94168,2537.0,2536.7,0.55]
[1729771566115,4.87287,2537.2,2536.6,3.94227]
[1729771566424,8.81434,2537.2,2536.7,3.94205]
[1729771566625,4.87287,2537.2,2536.6,3.94227]
[1729771566790,3.94168,2537.0,2536.5,3.94241]
[1729771566984,3.94168,2537.0,2536.5,5.03151863]
[1729771567184,3.94165,2537.1,2536.5,5.03151863]
[1729771567185,3.94165,2537.1,2536.8,0.55]
[1729771567685,3.94186,2536.9,2536.6,0.55]
[1729771567883,3.94186,2536.9,2536.5,5.03145863]
[1729771567884,3.94186,2536.9,2536.5,0.55]
[1729771568216,3.94173,2537.0,2536.5,4.57117958]
[1729771568523,3.94191,2536.9,2536.5,0.55]
[1729771568883,3.94173,2537.0,2536.5,4.57119961]
[1729771569085,3.94204,2536.8,2536.4,0.55]
[1729771569426,3.94204,2536.8,2536.3,3.94268]
[1729771569427,4.84224,2536.7,2536.3,0.55]
[1729771569581,3.94235,2536.6,2536.1,4.84659]
[1729771569786,3.9425,2536.5,2536.1,1.285967]
[1729771569983,3.94269,2536.4,2536.1,1.285967]
[1729771570222,3.94281,2536.3,2535.9,4.07]
[1729771570519,3.94297,2536.2,2535.9,4.07]
[1729771570718,4.91137,2536.2,2535.9,4.07]
[1729771570922,3.94313,2536.1,2535.9,4.07]
[1729771571125,0.9684,2536.2,2535.9,4.07]
[1729771571284,0.979,2536.4,2536.0,3.94314]
[1729771572425,4.92166,2536.4,2536.0,0.55]
[1729771572600,0.979,2536.4,2536.2,0.55]
[1729771572801,0.979,2536.4,2536.2,4.49283]
[1729771573616,4.92168,2536.4,2536.1,0.55]
[1729771573940,4.92168,2536.4,2536.0,0.856325]
[1729771573941,3.94282,2536.3,2536.0,0.55]
[1729771574100,0.979,2536.4,2536.0,4.49311]
[1729771574297,4.92159,2536.4,2536.0,5.349521]
[1729771574498,3.94276,2536.3,2536.0,0.55]
[1729771574710,7.88562,2536.3,2536.0,0.55]
[1729771574919,4.92162,2536.4,2536.0,0.55]
[1729771575211,3.94294,2536.2,2535.9,4.07]
[1729771575432,3.94275,2536.3,2535.9,8.01335]
[1729771575830,4.92159,2536.4,2536.0,0.19945545]
[1729771576012,0.979,2536.4,2536.1,0.55]
[1729771576339,0.979,2536.4,2536.2,0.19923336]
[1729771576546,3.94275,2536.3,2536.2,0.19923336]
[1729771576919,3.94293,2536.2,2535.9,4.07]
[1729771577123,3.94277,2536.3,2535.9,4.07]
[1729771577431,3.94293,2536.2,2535.9,4.07]
[1729771578001,3.94275,2536.3,2535.9,4.07]
[1729771578330,3.94275,2536.3,2535.0,3.42075089]
[1729771578331,3.94365,2535.8,2535.4,3.94412]
[1729771578660,3.94365,2535.8,2535.3,0.9066]
[1729771578808,3.94365,2535.8,2535.4,3.94405]
[1729771579008,2.91274915,2535.9,2535.3,3.94419]
[1729771579248,2.91274915,2535.9,2535.3,4.34654671]
[1729771579462,3.94359,2535.8,2535.4,3.94406]
[1729771579624,4.87634,2535.5,2535.0,4.85124]
[1729771579952,0.9322,2535.5,2535.1,4.02339408]
[1729771580132,0.9322,2535.5,2535.2,3.94445]
[1729771580338,3.94431,2535.3,2534.9,8.01491]
[1729771580642,0.9322,2535.5,2535.0,3.94476]
[1729771580643,4.87623,2535.5,2535.0,3.94476]
[1729771580808,3.94422,2535.4,2534.9,8.903071]
[1729771581318,3.65352545,2535.4,2534.4,0.9065]
[1729771581527,3.65352545,2535.4,2534.5,3.94544]
[1729771581528,3.94446,2535.2,2534.5,3.94544]
[1729771581724,3.94475,2535.1,2534.5,3.94544]
[1729771582015,0.9088,2535.3,2535.0,3.94468]
[1729771582220,4.85264,2535.6,2535.2,3.94445]
[1729771582551,0.9088,2535.6,2535.2,3.94445]
[1729771582749,0.9088,2535.6,2535.2,3.94437]
[1729771582959,4.87044,2535.8,2535.2,3.94437]
[1729771583251,0.9269,2535.8,2535.4,3.94413]
[1729771583623,0.9269,2535.8,2535.5,4.14522152]
[1729771583817,0.9269,2535.8,2535.6,3.94383]
[1729771584027,3.9433,2536.0,2535.7,0.20100935]
[1729771584347,0.9269,2536.0,2535.7,0.15100935]
[1729771584509,4.87011,2536.0,2535.7,0.20089828]
[1729771584939,4.87011,2536.0,2535.6,3.94379]
[1729771585138,4.87011,2536.0,2535.8,0.19923161]
[1729771585338,4.87011,2536.0,2535.7,0.19934268]
[1729771585537,4.87011,2536.0,2535.9,0.19912054]
[1729771586008,0.9269,2536.0,2535.6,3.94379]
[1729771586210,3.943,2536.2,2535.7,4.14302268]
[1729771586418,0.9111,2536.2,2535.7,0.19934268]
[1729771586649,3.94306,2536.1,2535.7,0.19934268]
[1729771587352,3.94328,2536.0,2535.7,0.19934268]
[1729771587549,3.94337,2535.9,2535.7,0.19934268]
[1729771587925,3.94322,2536.0,2535.7,0.19934268]
[1729771588577,3.94339,2535.9,2535.7,0.19934268]
[1729771589165,3.94339,2535.9,2535.5,0.55]
[1729771589371,3.94339,2535.9,2535.8,0.19907019]
[1729771589687,3.94339,2535.9,2535.8,0.19905711]
[1729771590042,3.94328,2536.0,2535.8,0.19905711]
[1729771590275,3.94328,2536.0,2535.6,3.94383]
[1729771590485,3.94328,2536.0,2535.9,0.19894604]
[1729771590646,3.94328,2536.0,2535.5,4.49392]
[1729771590842,3.94343,2535.9,2535.5,0.55]
[1729771591340,3.94343,2535.9,2535.5,4.49397]
[1729771591540,3.94343,2535.9,2535.5,0.55]
[1729771591786,0.9313,2535.8,2535.5,4.49391]
[1729771592173,0.9313,2535.8,2535.6,0.19944501]
[1729771593060,4.87489,2535.8,2535.6,0.19944501]
[1729771593439,4.87489,2535.8,2535.4,0.55]
[1729771593781,3.94378,2535.7,2535.4,0.55]
[1729771595187,3.94378,2535.7,2535.1,3.94452]
[1729771595188,3.9441,2535.5,2535.1,3.94452]
[1729771595491,3.94399,2535.5,2535.0,3.94474]
[1729771595893,3.94415,2535.4,2535.0,3.94474]
[1729771596099,3.94394,2535.6,2535.0,3.94474]
[1729771596346,3.94402,2535.5,2535.0,3.94474]
[1729771596610,3.94402,2535.5,2535.1,0.55]
[1729771596824,3.94416,2535.4,2535.1,0.55]
[1729771596999,3.94416,2535.4,2535.0,3.94474]
[1729771597678,3.94453,2535.2,2534.7,3.94517]
[1729771597884,3.94453,2535.2,2534.8,3.94499]
[1729771598330,4.87633,2535.3,2534.9,3.94491]
[1729771598617,3.94452,2535.2,2534.8,3.94507]
[1729771599205,0.932,2535.3,2534.8,3.94501]
[1729771599508,0.932,2535.3,2534.9,3.9449]
[1729771599736,4.87632,2535.3,2534.9,3.9449]
[1729771600900,4.87632,2535.3,2534.8,3.94501]
[1729771600901,5.758379,2535.3,2534.8,3.94501]
[1729771601119,5.758419,2535.3,2534.8,7.89003]
[1729771601713,5.758419,2535.3,2534.9,3.9449]
[1729771602227,5.758419,2535.3,2534.7,3.94514]
[1729771602422,3.94454,2535.2,2534.8,4.49506]
[1729771602585,3.94465,2535.1,2534.7,3.9452]
[1729771602998,3.94465,2535.1,2534.6,4.84677]
[1729771603328,1.26189908,2535.2,2534.6,4.84677]
[1729771603329,1.26189908,2535.2,2534.7,0.55]
[1729771603540,3.94456,2535.2,2534.7,4.49515]
[1729771603747,3.94456,2535.2,2534.7,0.55]
[1729771604035,3.94456,2535.2,2534.8,3.94507]
[1729771604337,4.87643,2535.3,2534.7,0.55]
[1729771604522,3.94452,2535.2,2534.8,3.94493]
[1729771604910,3.94474,2535.1,2534.6,4.49536]
[1729771605112,0.932,2535.3,2534.7,0.9643]
[1729771605314,0.9713,2535.6,2535.3,3.94421]
[1729771605642,4.91521,2535.6,2535.2,3.94439]
[1729771605798,4.91521,2535.6,2535.4,0.20016456]
[1729771605994,4.91521,2535.6,2535.2,3.94439]
[1729771606199,4.91521,2535.6,2535.3,0.20027567]
[1729771606444,0.9713,2535.6,2535.2,3.94439]
[1729771606598,4.91521,2535.6,2535.4,0.20016456]
[1729771606800,3.94399,2535.5,2535.1,3.94455]
[1729771607004,3.94399,2535.5,2535.2,0.2003126]
[1729771607747,3.9443,2535.3,2535.2,0.2003126]
[1729771607954,3.94424,2535.4,2535.2,0.2003126]
[1729771608151,3.94424,2535.4,2534.9,3.94483]
[1729771608669,3.94424,2535.4,2535.0,4.14523868]
[1729771608954,3.94433,2535.3,2535.0,0.20050868]
[1729771609138,4.85821,2535.1,2535.0,0.20050868]
[1729771609374,0.9136,2535.1,2535.0,0.20050868]
[1729771609952,0.9136,2535.1,2534.8,4.495]
[1729771610131,0.9136,2535.1,2535.0,0.20059159]
[1729771610336,0.9136,2535.1,2534.9,0.20070274]
[1729771610651,0.9136,2535.3,2535.1,3.94453]
[1729771611036,0.9136,2535.3,2535.2,0.20037806]
[1729771611238,0.9136,2535.3,2535.0,4.49474]
[1729771611417,0.9136,2535.3,2535.1,0.20048918]
[1729771612153,4.85797,2535.3,2535.1,0.20048918]
[1729771612355,0.9136,2535.3,2535.1,0.20048918]
[1729771612515,0.9136,2535.3,2535.0,3.9447]
[1729771612710,0.9136,2535.3,2535.2,0.20041732]
[1729771612910,0.9136,2535.3,2535.0,3.9447]
[1729771612911,0.9136,2535.3,2535.1,0.20052845]
[1729771613242,3.94418,2535.4,2535.2,0.20041732]
[1729771613445,3.94418,2535.4,2535.0,3.94466]
[1729771613753,7.88845,2535.4,2535.1,0.20052845]
[1729771613967,3.94418,2535.4,2535.1,0.20052845]
[1729771614118,0.8899,2535.7,2535.2,3.94438]
[1729771614313,0.8899,2535.7,2535.2,0.9164]
[1729771614532,3.94386,2535.6,2535.3,0.2002713]
[1729771614726,3.94408,2535.5,2535.3,0.2002713]
[1729771614953,3.94415,2535.4,2534.9,8.80608]
[1729771615124,0.8899,2535.3,2534.8,3.94508]
[1729771615335,0.9411,2535.5,2535.1,3.94448]
[1729771615519,4.88521,2535.5,2535.0,3.94476]
[1729771615723,4.88521,2535.5,2535.0,7.88946]
[1729771615919,4.88521,2535.5,2535.1,3.94458]
[1729771616356,0.9398,2535.4,2534.9,0.55]
[1729771616661,8.82827,2535.4,2534.9,4.49484]
[1729771616949,4.88402,2535.4,2535.0,3.94468]
[1729771618650,4.88402,2535.4,2535.0,7.88936]
[1729771618864,4.88402,2535.4,2534.9,4.49485]
[1729771619017,3.9443,2535.3,2534.9,0.55]
[1729771619357,3.94452,2535.2,2534.9,0.55]
[1729771619660,7.88868,2535.3,2534.9,0.55]
[1729771619861,3.9443,2535.3,2534.9,0.55]
[1729771620229,3.9443,2535.3,2534.9,4.4949]
[1729771620936,7.88874,2535.3,2534.9,0.55]
[1729771621136,4.88367,2535.1,2535.0,0.20063086]
[1729771621459,3.94532,2534.7,2534.2,3.94594]
[1729771621760,3.94532,2534.7,2534.1,4.90567]
[1729771621761,3.94557,2534.5,2534.1,4.90575]
[1729771622076,3.94558,2534.5,2534.1,4.90575]
[1729771622230,3.94577,2534.4,2534.0,3.94631]
[1729771622434,3.94559,2534.5,2534.0,3.9462]
[1729771622644,3.94559,2534.5,2534.1,3.94616]
[1729771622843,3.94559,2534.5,2534.0,3.9462]
[1729771623658,3.94559,2534.5,2534.0,7.89242]
[1729771623867,3.94571,2534.4,2534.0,3.9462]
[1729771624162,3.94571,2534.4,2533.8,4.90618]
[1729771624163,3.94571,2534.4,2533.9,3.9464]
[1729771624316,7.89156,2534.4,2533.9,3.9464]
[1729771624522,3.94571,2534.4,2533.9,7.89279]
[1729771624943,3.94571,2534.4,2534.0,3.94631]
[1729771625264,4.90501,2534.6,2533.9,3.94639]
[1729771625488,3.9458,2534.4,2534.0,3.94632]
[1729771625958,3.94556,2534.5,2534.1,3.94616]
[1729771626169,0.9595,2534.6,2534.2,3.94595]
[1729771626330,0.9595,2534.6,2534.3,3.94583]
[1729771626745,4.91015,2534.7,2534.3,3.94583]
[1729771626964,3.94555,2534.5,2534.1,0.55]
[1729771627482,3.94555,2534.5,2534.1,3.94616]
[1729771627673,3.94555,2534.5,2534.0,0.55]
[1729771627843,4.85243,2534.3,2533.9,3.94639]
[1729771628035,0.9065,2534.3,2534.0,3.94628]
[1729771628232,0.9065,2534.3,2533.9,3.94639]
[1729771628465,4.85238,2534.3,2533.9,3.94637]
[1729771628833,4.85238,2534.3,2533.8,4.49661]
[1729771629372,5.732196,2534.3,2533.8,4.49661]
[1729771629559,3.94609,2534.2,2533.8,4.49661]
[1729771629960,3.94609,2534.2,2533.7,4.07]